Workbook

Sheet Rezumatul bugetului lunar
B1: NUME FIRMĂ
B2: BUGET LUNAR | E2: Dată
B4: TOTAL BUGET | C4: ESTIMAT | D4: REAL | E4: DIFERENȚĂ
B5: Venit | C5: =Venit[[#Totals],[ESTIMAT]] -> 63,300.00 | D5: =Venit[[#Totals],[REAL]] -> 57,450.00 | E5: =Totaluri[[#This Row],[REAL]]-Totaluri[[#This Row],[ESTIMAT]] -> -5,850.00
B6: Cheltuieli | C6: =CheltuieliOperare[[#Totals],[ESTIMAT]]+CheltuieliPersonal[[#Totals],[ESTIMAT]] -> 54,500.00 | D6: =CheltuieliOperare[[#Totals],[REAL]]+CheltuieliPersonal[[#Totals],[REAL]] -> 49,630.00 | E6: =Totaluri[[#This Row],[ESTIMAT]]-Totaluri[[#This Row],[REAL]] -> 4,870.00
B7: Sold (venit minus cheltuieli) | C7: =C5-C6 -> 8,800.00 | D7: =D5-D6 -> 7,820.00 | E7: =Totaluri[[#Totals],[REAL]]-Totaluri[[#Totals],[ESTIMAT]] -> -980.00
B10: CARE SUNT PRIMELE 5 CELE MAI MARI CHELTUIELI DE OPERARE?
B11: CHELTUIALĂ | C11: SUMĂ | D11: % DIN CHELTUIELI | E11: 15% REDUCERE
B12: =INDEX(CheltuieliOperare[],MATCH(Top5Cheltuieli[[#This Row],[SUMĂ]],CheltuieliOperare[TOP 5 SUMĂ],0),1) -> Întreținere și reparații | C12: =LARGE(CheltuieliOperare[TOP 5 SUMĂ],1) -> 4,600.00 | D12: =Top5Cheltuieli[[#This Row],[SUMĂ]]/$D$6 -> 9.3% | E12: =Top5Cheltuieli[[#This Row],[SUMĂ]]*0.15 -> 690.00
B13: =INDEX(CheltuieliOperare[],MATCH(Top5Cheltuieli[[#This Row],[SUMĂ]],CheltuieliOperare[TOP 5 SUMĂ],0),1) -> Consumabile | C13: =LARGE(CheltuieliOperare[TOP 5 SUMĂ],2) -> 4,500.00 | D13: =Top5Cheltuieli[[#This Row],[SUMĂ]]/$D$6 -> 9.1% | E13: =Top5Cheltuieli[[#This Row],[SUMĂ]]*0.15 -> 675.00
B14: =INDEX(CheltuieliOperare[],MATCH(Top5Cheltuieli[[#This Row],[SUMĂ]],CheltuieliOperare[TOP 5 SUMĂ],0),1) -> Chirie sau credit ipotecar | C14: =LARGE(CheltuieliOperare[TOP 5 SUMĂ],3) -> 4,500.00 | D14: =Top5Cheltuieli[[#This Row],[SUMĂ]]/$D$6 -> 9.1% | E14: =Top5Cheltuieli[[#This Row],[SUMĂ]]*0.15 -> 675.00
B15: =INDEX(CheltuieliOperare[],MATCH(Top5Cheltuieli[[#This Row],[SUMĂ]],CheltuieliOperare[TOP 5 SUMĂ],0),1) -> Impozite și taxe | C15: =LARGE(CheltuieliOperare[TOP 5 SUMĂ],4) -> 3,200.00 | D15: =Top5Cheltuieli[[#This Row],[SUMĂ]]/$D$6 -> 6.4% | E15: =Top5Cheltuieli[[#This Row],[SUMĂ]]*0.15 -> 480.00
B16: =INDEX(CheltuieliOperare[],MATCH(Top5Cheltuieli[[#This Row],[SUMĂ]],CheltuieliOperare[TOP 5 SUMĂ],0),1) -> Publicitate | C16: =LARGE(CheltuieliOperare[TOP 5 SUMĂ],5) -> 2,500.00 | D16: =Top5Cheltuieli[[#This Row],[SUMĂ]]/$D$6 -> 5.0% | E16: =Top5Cheltuieli[[#This Row],[SUMĂ]]*0.15 -> 375.00
B17: Total | C17: =SUBTOTAL(109,Top5Cheltuieli[SUMĂ]) -> 19,300.00 | D17: =SUBTOTAL(109,Top5Cheltuieli[% DIN CHELTUIELI]) -> 38.9% | E17: =SUBTOTAL(109,Top5Cheltuieli[15% REDUCERE]) -> 2,895.00

Sheet Venit
B1: =NUME_FIRMĂ -> NUME FIRMĂ
B2: =Titlu_BUGET -> BUGET LUNAR
B4: VENIT | C4: ESTIMAT | D4: REAL | E4: TOP 5 SUMĂ | F4: DIFERENȚĂ
B5: Vânzări nete | C5: 60,000.00 | D5: 54,000.00 | E5: =Venit[[#This Row],[REAL]]+(10^-6)*ROW(Venit[[#This Row],[REAL]]) -> 54,000.00 | F5: =Venit[[#This Row],[REAL]]-Venit[[#This Row],[ESTIMAT]] -> -6,000.00
B6: Venit din dobânzi | C6: 3,000.00 | D6: 3,000.00 | E6: =Venit[[#This Row],[REAL]]+(10^-6)*ROW(Venit[[#This Row],[REAL]]) -> 3,000.00 | F6: =Venit[[#This Row],[REAL]]-Venit[[#This Row],[ESTIMAT]] -> 0.00
B7: Vânzări active (câștig/pierdere) | C7: 300.00 | D7: 450.00 | E7: =Venit[[#This Row],[REAL]]+(10^-6)*ROW(Venit[[#This Row],[REAL]]) -> 450.00 | F7: =Venit[[#This Row],[REAL]]-Venit[[#This Row],[ESTIMAT]] -> 150.00
B8: Total venit | C8: =SUBTOTAL(109,Venit[ESTIMAT]) -> 63,300.00 | D8: =SUBTOTAL(109,Venit[REAL]) -> 57,450.00 | F8: =SUBTOTAL(109,Venit[DIFERENȚĂ]) -> -5,850.00

Sheet Cheltuieli personal
B1: =NUME_FIRMĂ -> NUME FIRMĂ
B2: =Titlu_BUGET -> BUGET LUNAR
B4: CHELTUIELI PERSONAL | C4: ESTIMAT | D4: REAL | E4: TOP 5 SUMĂ | F4: DIFERENȚĂ
B5: Salarii | C5: 9,500.00 | D5: 9,600.00 | E5: =CheltuieliPersonal[[#This Row],[REAL]]+(10^-6)*ROW(CheltuieliPersonal[[#This Row],[REAL]]) -> 9,600.00 | F5: =CheltuieliPersonal[[#This Row],[ESTIMAT]]-CheltuieliPersonal[[#This Row],[REAL]] -> -100.00
B6: Beneficii angajat | C6: 4,000.00 | D6: 0.00 | E6: =CheltuieliPersonal[[#This Row],[REAL]]+(10^-6)*ROW(CheltuieliPersonal[[#This Row],[REAL]]) -> 0.00 | F6: =CheltuieliPersonal[[#This Row],[ESTIMAT]]-CheltuieliPersonal[[#This Row],[REAL]] -> 4,000.00
B7: Comision | C7: 5,000.00 | D7: 4,500.00 | E7: =CheltuieliPersonal[[#This Row],[REAL]]+(10^-6)*ROW(CheltuieliPersonal[[#This Row],[REAL]]) -> 4,500.00 | F7: =CheltuieliPersonal[[#This Row],[ESTIMAT]]-CheltuieliPersonal[[#This Row],[REAL]] -> 500.00
B8: Cheltuieli totale personal | C8: =SUBTOTAL(109,CheltuieliPersonal[ESTIMAT]) -> 18,500.00 | D8: =SUBTOTAL(109,CheltuieliPersonal[REAL]) -> 14,100.00 | F8: =SUBTOTAL(109,CheltuieliPersonal[DIFERENȚĂ]) -> 4,400.00

Sheet Cheltuieli de operare
B1: =NUME_FIRMĂ -> NUME FIRMĂ
B2: =Titlu_BUGET -> BUGET LUNAR
B4: CHELTUIELI DE OPERARE | C4: ESTIMAT | D4: REAL | E4: TOP 5 SUMĂ | F4: DIFERENȚĂ
B5: Publicitate | C5: 3,000.00 | D5: 2,500.00 | E5: =CheltuieliOperare[[#This Row],[REAL]]+(10^-6)*ROW(CheltuieliOperare[[#This Row],[REAL]]) -> 2,500.00 | F5: =CheltuieliOperare[[#This Row],[ESTIMAT]]-CheltuieliOperare[[#This Row],[REAL]] -> 500.00
B6: Datorii neacoperite | C6: 2,000.00 | D6: 2,000.00 | E6: =CheltuieliOperare[[#This Row],[REAL]]+(10^-6)*ROW(CheltuieliOperare[[#This Row],[REAL]]) -> 2,000.00 | F6: =CheltuieliOperare[[#This Row],[ESTIMAT]]-CheltuieliOperare[[#This Row],[REAL]] -> 0.00
B7: Reduceri numerar | C7: 1,500.00 | D7: 2,175.00 | E7: =CheltuieliOperare[[#This Row],[REAL]]+(10^-6)*ROW(CheltuieliOperare[[#This Row],[REAL]]) -> 2,175.00 | F7: =CheltuieliOperare[[#This Row],[ESTIMAT]]-CheltuieliOperare[[#This Row],[REAL]] -> -675.00
B8: Costuri de livrare | C8: 2,000.00 | D8: 1,500.00 | E8: =CheltuieliOperare[[#This Row],[REAL]]+(10^-6)*ROW(CheltuieliOperare[[#This Row],[REAL]]) -> 1,500.00 | F8: =CheltuieliOperare[[#This Row],[ESTIMAT]]-CheltuieliOperare[[#This Row],[REAL]] -> 500.00
B9: Amortizare | C9: 1,000.00 | D9: 1,000.00 | E9: =CheltuieliOperare[[#This Row],[REAL]]+(10^-6)*ROW(CheltuieliOperare[[#This Row],[REAL]]) -> 1,000.00 | F9: =CheltuieliOperare[[#This Row],[ESTIMAT]]-CheltuieliOperare[[#This Row],[REAL]] -> 0.00
B10: Datorii și abonamente | C10: 500.00 | D10: 525.00 | E10: =CheltuieliOperare[[#This Row],[REAL]]+(10^-6)*ROW(CheltuieliOperare[[#This Row],[REAL]]) -> 525.00 | F10: =CheltuieliOperare[[#This Row],[ESTIMAT]]-CheltuieliOperare[[#This Row],[REAL]] -> -25.00
B11: Asigurare | C11: 1,300.00 | D11: 1,275.00 | E11: =CheltuieliOperare[[#This Row],[REAL]]+(10^-6)*ROW(CheltuieliOperare[[#This Row],[REAL]]) -> 1,275.00 | F11: =CheltuieliOperare[[#This Row],[ESTIMAT]]-CheltuieliOperare[[#This Row],[REAL]] -> 25.00
B12: Dobândă | C12: 2,000.00 | D12: 2,200.00 | E12: =CheltuieliOperare[[#This Row],[REAL]]+(10^-6)*ROW(CheltuieliOperare[[#This Row],[REAL]]) -> 2,200.00 | F12: =CheltuieliOperare[[#This Row],[ESTIMAT]]-CheltuieliOperare[[#This Row],[REAL]] -> -200.00
B13: Legal și audit | C13: 1,000.00 | D13: 800.00 | E13: =CheltuieliOperare[[#This Row],[REAL]]+(10^-6)*ROW(CheltuieliOperare[[#This Row],[REAL]]) -> 800.00 | F13: =CheltuieliOperare[[#This Row],[ESTIMAT]]-CheltuieliOperare[[#This Row],[REAL]] -> 200.00
B14: Întreținere și reparații | C14: 4,500.00 | D14: 4,600.00 | E14: =CheltuieliOperare[[#This Row],[REAL]]+(10^-6)*ROW(CheltuieliOperare[[#This Row],[REAL]]) -> 4,600.00 | F14: =CheltuieliOperare[[#This Row],[ESTIMAT]]-CheltuieliOperare[[#This Row],[REAL]] -> -100.00
B15: Consumabile de birou | C15: 800.00 | D15: 750.00 | E15: =CheltuieliOperare[[#This Row],[REAL]]+(10^-6)*ROW(CheltuieliOperare[[#This Row],[REAL]]) -> 750.00 | F15: =CheltuieliOperare[[#This Row],[ESTIMAT]]-CheltuieliOperare[[#This Row],[REAL]] -> 50.00
B16: Cheltuieli cu poșta | C16: 400.00 | D16: 350.00 | E16: =CheltuieliOperare[[#This Row],[REAL]]+(10^-6)*ROW(CheltuieliOperare[[#This Row],[REAL]]) -> 350.00 | F16: =CheltuieliOperare[[#This Row],[ESTIMAT]]-CheltuieliOperare[[#This Row],[REAL]] -> 50.00
B17: Chirie sau credit ipotecar | C17: 4,100.00 | D17: 4,500.00 | E17: =CheltuieliOperare[[#This Row],[REAL]]+(10^-6)*ROW(CheltuieliOperare[[#This Row],[REAL]]) -> 4,500.00 | F17: =CheltuieliOperare[[#This Row],[ESTIMAT]]-CheltuieliOperare[[#This Row],[REAL]] -> -400.00
B18: Cheltuieli vânzări | C18: 350.00 | D18: 400.00 | E18: =CheltuieliOperare[[#This Row],[REAL]]+(10^-6)*ROW(CheltuieliOperare[[#This Row],[REAL]]) -> 400.00 | F18: =CheltuieliOperare[[#This Row],[ESTIMAT]]-CheltuieliOperare[[#This Row],[REAL]] -> -50.00
B19: Livrare și depozitare | C19: 900.00 | D19: 840.00 | E19: =CheltuieliOperare[[#This Row],[REAL]]+(10^-6)*ROW(CheltuieliOperare[[#This Row],[REAL]]) -> 840.00 | F19: =CheltuieliOperare[[#This Row],[ESTIMAT]]-CheltuieliOperare[[#This Row],[REAL]] -> 60.00
B20: Consumabile | C20: 5,000.00 | D20: 4,500.00 | E20: =CheltuieliOperare[[#This Row],[REAL]]+(10^-6)*ROW(CheltuieliOperare[[#This Row],[REAL]]) -> 4,500.00 | F20: =CheltuieliOperare[[#This Row],[ESTIMAT]]-CheltuieliOperare[[#This Row],[REAL]] -> 500.00
B21: Impozite și taxe | C21: 3,000.00 | D21: 3,200.00 | E21: =CheltuieliOperare[[#This Row],[REAL]]+(10^-6)*ROW(CheltuieliOperare[[#This Row],[REAL]]) -> 3,200.00 | F21: =CheltuieliOperare[[#This Row],[ESTIMAT]]-CheltuieliOperare[[#This Row],[REAL]] -> -200.00
B22: Telefon | C22: 250.00 | D22: 280.00 | E22: =CheltuieliOperare[[#This Row],[REAL]]+(10^-6)*ROW(CheltuieliOperare[[#This Row],[REAL]]) -> 280.00 | F22: =CheltuieliOperare[[#This Row],[ESTIMAT]]-CheltuieliOperare[[#This Row],[REAL]] -> -30.00
B23: Utilități | C23: 1,400.00 | D23: 1,385.00 | E23: =CheltuieliOperare[[#This Row],[REAL]]+(10^-6)*ROW(CheltuieliOperare[[#This Row],[REAL]]) -> 1,385.00 | F23: =CheltuieliOperare[[#This Row],[ESTIMAT]]-CheltuieliOperare[[#This Row],[REAL]] -> 15.00
B24: Altele | C24: 1,000.00 | D24: 750.00 | E24: =CheltuieliOperare[[#This Row],[REAL]]+(10^-6)*ROW(CheltuieliOperare[[#This Row],[REAL]]) -> 750.00 | F24: =CheltuieliOperare[[#This Row],[ESTIMAT]]-CheltuieliOperare[[#This Row],[REAL]] -> 250.00
B25: Total cheltuieli de operare | C25: =SUBTOTAL(109,CheltuieliOperare[ESTIMAT]) -> 36,000.00 | D25: =SUBTOTAL(109,CheltuieliOperare[REAL]) -> 35,530.00 | F25: =SUBTOTAL(109,CheltuieliOperare[DIFERENȚĂ]) -> 470.00
